[Event "Titled Tuesday Blitz July 11 Early 2023"]
[White "AlivodicDario"]
[Black "Dwilewicz, Katarzyna"]
[BlackFideId "1148486"]
[WhiteElo "2486"]
[BlackElo "2299"]
[Result "1-0"]
[Round "5"]
[TimeControl "180+2"]
[Date "2023.07.11"]
[WhiteClock "0:00:42"]
[BlackClock "0:00:03"]
[Board "159"]

1. d4 {[%clk 0:03:00]}  g6 {[%clk 0:02:57]} 2. c4 {[%clk 0:03:00]}  Bg7 {[%clk 0:02:57]} 3. e4 {[%clk 0:03:01]}  d6 {[%clk 0:02:56]} 4. Nc3 {[%clk 0:03:01]}  Nd7 {[%clk 0:02:55]} 5. Nge2 {[%clk 0:03:00]}  e5 {[%clk 0:02:55]} 6. d5 {[%clk 0:02:57]}  Ne7 {[%clk 0:02:55]} 7. h4 {[%clk 0:02:56]}  f5 {[%clk 0:02:52]} 8. h5 {[%clk 0:02:56]}  f4 {[%clk 0:02:51]} 9. hxg6 {[%clk 0:02:54]}  hxg6 {[%clk 0:02:51]} 10. Rxh8+ {[%clk 0:02:54]}  Bxh8 {[%clk 0:02:52]} 11. f3 {[%clk 0:02:54]}  Bf6 {[%clk 0:02:45]} 12. Qc2 {[%clk 0:02:54]}  Bh4+ {[%clk 0:02:44]} 13. Kd1 {[%clk 0:02:51]}  Kf7 {[%clk 0:02:40]} 14. Bd2 {[%clk 0:02:49]}  a5 {[%clk 0:02:38]} 15. Kc1 {[%clk 0:02:47]}  Nc5 {[%clk 0:02:38]} 16. b3 {[%clk 0:02:47]}  c6 {[%clk 0:02:37]} 17. Kb2 {[%clk 0:02:46]}  Bd7 {[%clk 0:02:32]} 18. Nc1 {[%clk 0:02:44]}  Qb8 {[%clk 0:02:13]} 19. Nd3 {[%clk 0:02:43]}  Nxd3+ {[%clk 0:02:05]} 20. Bxd3 {[%clk 0:02:42]}  Bf2 {[%clk 0:02:00]} 21. Rh1 {[%clk 0:02:40]}  Kg7 {[%clk 0:01:58]} 22. Bxf4 {[%clk 0:02:38]}  Bd4 {[%clk 0:01:56]} 23. Bh6+ {[%clk 0:02:35]}  Kf7 {[%clk 0:01:56]} 24. Bg5 {[%clk 0:02:34]}  Qg8 {[%clk 0:01:51]} 25. Kb1 {[%clk 0:02:27]}  b5 {[%clk 0:01:51]} 26. cxb5 {[%clk 0:02:18]}  cxb5 {[%clk 0:01:51]} 27. Bxb5 {[%clk 0:02:17]}  Ra7 {[%clk 0:01:33]} 28. Bxd7 {[%clk 0:02:13]}  Rxd7 {[%clk 0:01:32]} 29. Nb5 {[%clk 0:02:11]}  Bc5 {[%clk 0:01:28]} 30. g4 {[%clk 0:01:54]}  Rb7 {[%clk 0:01:27]} 31. a4 {[%clk 0:01:54]}  Nc8 {[%clk 0:01:16]} 32. Qh2 {[%clk 0:01:36]}  Kf8 {[%clk 0:01:04]} 33. Qh6+ {[%clk 0:01:32]}  Ke8 {[%clk 0:01:02]} 34. Qh8 {[%clk 0:01:31]}  Kf8 {[%clk 0:00:41]} 35. Bf6 {[%clk 0:01:13]}  Ne7 {[%clk 0:00:29]} 36. Rh7 {[%clk 0:01:12]}  Qxh8 {[%clk 0:00:18]} 37. Rxh8+ {[%clk 0:01:13]}  Ng8 {[%clk 0:00:16]} 38. g5 {[%clk 0:01:00]}  Rf7 {[%clk 0:00:16]} 39. Kc2 {[%clk 0:00:54]}  Bb6 {[%clk 0:00:11]} 40. Nxd6 {[%clk 0:00:53]}  Rd7 {[%clk 0:00:10]} 41. Nc4 {[%clk 0:00:52]}  Bc5 {[%clk 0:00:10]} 42. Nxe5 {[%clk 0:00:51]}  Rc7 {[%clk 0:00:10]} 43. Nxg6+ {[%clk 0:00:51]}  Kf7 {[%clk 0:00:10]} 44. Ne5+ {[%clk 0:00:49]}  Kf8 {[%clk 0:00:10]} 45. Nc4 {[%clk 0:00:43]}  Rf7 {[%clk 0:00:03]} 46. e5 {[%clk 0:00:42]} 1-0


[Site "https://www.chess.com"]

[Event "Titled Tuesday Blitz July 11 Early 2023"]
[White "Kleiman, Jake"]
[Black "Xavier_mompel"]
[WhiteFideId "2020041"]
[WhiteElo "2480"]
[BlackElo "2255"]
[Result "1-0"]
[Round "5"]
[TimeControl "180+2"]
[Date "2023.07.11"]
[WhiteClock "0:00:52"]
[BlackClock "0:00:00"]
[Board "161"]

1. d4 {[%clk 0:03:00]}  d5 {[%clk 0:02:58]} 2. Bf4 {[%clk 0:03:01]}  Nf6 {[%clk 0:02:58]} 3. e3 {[%clk 0:03:01]}  e6 {[%clk 0:02:57]} 4. Nf3 {[%clk 0:03:01]}  Bd6 {[%clk 0:02:57]} 5. Bd3 {[%clk 0:02:59]}  O-O {[%clk 0:02:55]} 6. Bg3 {[%clk 0:02:59]}  c5 {[%clk 0:02:55]} 7. c3 {[%clk 0:02:59]}  Nc6 {[%clk 0:02:55]} 8. Ne5 {[%clk 0:02:56]}  Ne7 {[%clk 0:02:51]} 9. f4 {[%clk 0:02:52]}  b6 {[%clk 0:02:51]} 10. Nd2 {[%clk 0:02:51]}  Bb7 {[%clk 0:02:51]} 11. Bh4 {[%clk 0:02:43]}  Ne4 {[%clk 0:02:44]} 12. Nxe4 {[%clk 0:02:30]}  dxe4 {[%clk 0:02:44]} 13. Bc2 {[%clk 0:02:30]}  f6 {[%clk 0:02:41]} 14. Nc4 {[%clk 0:02:27]}  Nf5 {[%clk 0:02:33]} 15. Bf2 {[%clk 0:02:27]}  cxd4 {[%clk 0:02:24]} 16. cxd4 {[%clk 0:02:27]}  Bb4+ {[%clk 0:02:23]} 17. Kf1 {[%clk 0:02:18]}  Ba6 {[%clk 0:02:20]} 18. b3 {[%clk 0:02:16]}  b5 {[%clk 0:02:08]} 19. Nd2 {[%clk 0:02:11]}  Bc3 {[%clk 0:02:01]} 20. Rc1 {[%clk 0:02:07]}  b4+ {[%clk 0:02:00]} 21. Kg1 {[%clk 0:02:07]}  Bxd2 {[%clk 0:01:46]} 22. Qxd2 {[%clk 0:02:07]}  Qd5 {[%clk 0:01:34]} 23. g4 {[%clk 0:02:02]}  Nd6 {[%clk 0:01:32]} 24. Qxb4 {[%clk 0:02:00]}  Rac8 {[%clk 0:01:31]} 25. Kg2 {[%clk 0:02:00]}  Be2 {[%clk 0:01:27]} 26. Kg3 {[%clk 0:01:44]}  Bf3 {[%clk 0:00:39]} 27. Rhg1 {[%clk 0:01:36]}  h5 {[%clk 0:00:31]} 28. h3 {[%clk 0:01:36]}  hxg4 {[%clk 0:00:18]} 29. hxg4 {[%clk 0:01:37]}  Nf5+ {[%clk 0:00:17]} 30. Kh2 {[%clk 0:01:24]}  Nh6 {[%clk 0:00:14]} 31. g5 {[%clk 0:01:18]}  Ng4+ {[%clk 0:00:13]} 32. Kg3 {[%clk 0:01:17]}  fxg5 {[%clk 0:00:12]} 33. Qe7 {[%clk 0:01:08]}  gxf4+ {[%clk 0:00:11]} 34. exf4 {[%clk 0:01:09]}  Qf5 {[%clk 0:00:08]} 35. Qg5 {[%clk 0:01:08]}  Qxg5 {[%clk 0:00:06]} 36. fxg5 {[%clk 0:01:08]}  Rc3 {[%clk 0:00:04]} 37. Be1 {[%clk 0:01:00]}  Re3 {[%clk 0:00:03]} 38. Bd2 {[%clk 0:00:55]}  Re2 {[%clk 0:00:04]} 39. Bf4 {[%clk 0:00:53]}  Rf5 {[%clk 0:00:00]} 40. Bb1 {[%clk 0:00:52]} 1-0


[Site "https://www.chess.com"]

[Event "Titled Tuesday Blitz July 11 Early 2023"]
[White "Nikologorsky, Matfei"]
[Black "Larina, Maria"]
[WhiteFideId "24102474"]
[BlackFideId "24113182"]
[WhiteElo "2417"]
[BlackElo "2225"]
[Result "1-0"]
[Round "5"]
[TimeControl "180+2"]
[Date "2023.07.11"]
[WhiteClock "0:00:14"]
[BlackClock "0:00:00"]
[Board "166"]

1. e4 {[%clk 0:02:59]}  c6 {[%clk 0:03:00]} 2. d4 {[%clk 0:02:58]}  d5 {[%clk 0:03:00]} 3. Nc3 {[%clk 0:02:58]}  dxe4 {[%clk 0:03:00]} 4. Nxe4 {[%clk 0:02:59]}  Nf6 {[%clk 0:03:01]} 5. Nxf6+ {[%clk 0:02:59]}  exf6 {[%clk 0:03:02]} 6. c3 {[%clk 0:02:59]}  Bd6 {[%clk 0:03:02]} 7. Bd3 {[%clk 0:02:59]}  O-O {[%clk 0:03:03]} 8. Ne2 {[%clk 0:02:59]}  Re8 {[%clk 0:03:03]} 9. O-O {[%clk 0:02:59]}  Nd7 {[%clk 0:02:57]} 10. Bf4 {[%clk 0:02:58]}  Nf8 {[%clk 0:02:57]} 11. Bxd6 {[%clk 0:02:54]}  Qxd6 {[%clk 0:02:58]} 12. Ng3 {[%clk 0:02:46]}  g6 {[%clk 0:02:53]} 13. Qd2 {[%clk 0:02:22]}  Kg7 {[%clk 0:02:34]} 14. f4 {[%clk 0:02:12]}  f5 {[%clk 0:02:25]} 15. Rae1 {[%clk 0:02:05]}  Be6 {[%clk 0:02:22]} 16. Qc2 {[%clk 0:01:54]}  Qd7 {[%clk 0:01:52]} 17. Re5 {[%clk 0:01:50]}  f6 {[%clk 0:01:50]} 18. Re2 {[%clk 0:01:49]}  Bf7 {[%clk 0:01:32]} 19. Rfe1 {[%clk 0:01:47]}  Rxe2 {[%clk 0:01:32]} 20. Rxe2 {[%clk 0:01:46]}  Re8 {[%clk 0:01:32]} 21. Nf1 {[%clk 0:01:42]}  Ne6 {[%clk 0:01:26]} 22. g3 {[%clk 0:01:30]}  c5 {[%clk 0:01:27]} 23. dxc5 {[%clk 0:00:50]}  Nxc5 {[%clk 0:01:27]} 24. Rd2 {[%clk 0:00:50]}  Qc6 {[%clk 0:01:17]} 25. b3 {[%clk 0:00:36]}  Ne4 {[%clk 0:00:57]} 26. Bxe4 {[%clk 0:00:36]}  fxe4 {[%clk 0:00:58]} 27. Ne3 {[%clk 0:00:36]}  b5 {[%clk 0:00:53]} 28. Rd4 {[%clk 0:00:30]}  f5 {[%clk 0:00:49]} 29. Qb2 {[%clk 0:00:29]}  Kg8 {[%clk 0:00:46]} 30. a4 {[%clk 0:00:24]}  a6 {[%clk 0:00:46]} 31. axb5 {[%clk 0:00:20]}  axb5 {[%clk 0:00:47]} 32. g4 {[%clk 0:00:21]}  Qc5 {[%clk 0:00:44]} 33. gxf5 {[%clk 0:00:20]}  gxf5 {[%clk 0:00:45]} 34. b4 {[%clk 0:00:17]}  Qc8 {[%clk 0:00:40]} 35. Kf1 {[%clk 0:00:16]}  Rd8 {[%clk 0:00:38]} 36. Qg2+ {[%clk 0:00:15]}  Kh8 {[%clk 0:00:37]} 37. Qg5 {[%clk 0:00:15]}  Rxd4 {[%clk 0:00:35]} 38. Qf6+ {[%clk 0:00:15]}  Kg8 {[%clk 0:00:35]} 39. Qxd4 {[%clk 0:00:16]}  Bc4+ {[%clk 0:00:30]} 40. Kf2 {[%clk 0:00:16]}  Qe6 {[%clk 0:00:25]} 41. Qd8+ {[%clk 0:00:15]}  Kg7 {[%clk 0:00:25]} 42. Qg5+ {[%clk 0:00:16]}  Kf8 {[%clk 0:00:24]} 43. Nxf5 {[%clk 0:00:16]}  e3+ {[%clk 0:00:21]} 44. Nxe3 {[%clk 0:00:17]}  Qe4 {[%clk 0:00:16]} 45. Qe5 {[%clk 0:00:16]}  Qb1 {[%clk 0:00:10]} 46. f5 {[%clk 0:00:15]}  Qb2+ {[%clk 0:00:09]} 47. Kg3 {[%clk 0:00:15]}  Qe2 {[%clk 0:00:05]} 48. f6 {[%clk 0:00:15]}  Qe1+ {[%clk 0:00:04]} 49. Kf4 {[%clk 0:00:15]}  Qf2+ {[%clk 0:00:00]} 50. Ke4 {[%clk 0:00:14]} 1-0


[Site "https://www.chess.com"]

[Event "Titled Tuesday Blitz July 11 Early 2023"]
[White "Kashefi, Amir Hosein"]
[Black "Matute Escobar, Roxanny"]
[WhiteFideId "12557935"]
[BlackFideId "3926028"]
[WhiteElo "2413"]
[BlackElo "2201"]
[Result "1-0"]
[Round "5"]
[TimeControl "180+2"]
[Date "2023.07.11"]
[WhiteClock "0:00:12"]
[BlackClock "0:00:11"]
[Board "168"]

1. Nf3 {[%clk 0:02:57]}  Nf6 {[%clk 0:02:59]} 2. d4 {[%clk 0:02:57]}  g6 {[%clk 0:02:59]} 3. Bg5 {[%clk 0:02:57]}  Bg7 {[%clk 0:03:00]} 4. Bxf6 {[%clk 0:02:58]}  Bxf6 {[%clk 0:03:00]} 5. e3 {[%clk 0:02:59]}  O-O {[%clk 0:03:01]} 6. Nbd2 {[%clk 0:03:00]}  c5 {[%clk 0:03:01]} 7. c3 {[%clk 0:03:01]}  cxd4 {[%clk 0:03:02]} 8. exd4 {[%clk 0:03:01]}  Nc6 {[%clk 0:03:02]} 9. h4 {[%clk 0:03:01]}  d6 {[%clk 0:02:59]} 10. h5 {[%clk 0:03:00]}  e5 {[%clk 0:02:54]} 11. dxe5 {[%clk 0:02:58]}  Nxe5 {[%clk 0:02:47]} 12. Nxe5 {[%clk 0:02:56]}  dxe5 {[%clk 0:02:47]} 13. hxg6 {[%clk 0:02:56]}  fxg6 {[%clk 0:02:46]} 14. Bc4+ {[%clk 0:02:57]}  Kg7 {[%clk 0:02:46]} 15. Ne4 {[%clk 0:02:55]}  Qxd1+ {[%clk 0:02:41]} 16. Rxd1 {[%clk 0:02:56]}  Be7 {[%clk 0:02:37]} 17. f3 {[%clk 0:02:51]}  Bf5 {[%clk 0:02:36]} 18. Bd5 {[%clk 0:02:48]}  Rad8 {[%clk 0:02:23]} 19. Ke2 {[%clk 0:02:40]}  b5 {[%clk 0:02:19]} 20. a3 {[%clk 0:02:37]}  a5 {[%clk 0:02:17]} 21. g4 {[%clk 0:02:29]}  Bc8 {[%clk 0:02:16]} 22. Rd2 {[%clk 0:02:23]}  Ba6 {[%clk 0:02:15]} 23. Kd1 {[%clk 0:02:22]}  b4 {[%clk 0:02:14]} 24. axb4 {[%clk 0:02:21]}  axb4 {[%clk 0:02:15]} 25. c4 {[%clk 0:02:21]}  b3 {[%clk 0:01:43]} 26. Ke2 {[%clk 0:02:17]}  Bb4 {[%clk 0:01:40]} 27. Rd3 {[%clk 0:02:17]}  h6 {[%clk 0:01:00]} 28. Ra1 {[%clk 0:02:15]}  Rxd5 {[%clk 0:00:49]} 29. cxd5 {[%clk 0:02:04]}  Bxd3+ {[%clk 0:00:49]} 30. Kxd3 {[%clk 0:02:05]}  Rxf3+ {[%clk 0:00:49]} 31. Kc4 {[%clk 0:02:05]}  Be7 {[%clk 0:00:48]} 32. d6 {[%clk 0:02:06]}  Bd8 {[%clk 0:00:48]} 33. Ra7+ {[%clk 0:02:01]}  Kf8 {[%clk 0:00:46]} 34. Kd5 {[%clk 0:01:57]}  h5 {[%clk 0:00:38]} 35. gxh5 {[%clk 0:01:51]}  gxh5 {[%clk 0:00:39]} 36. Rh7 {[%clk 0:01:50]}  h4 {[%clk 0:00:39]} 37. Rh8+ {[%clk 0:01:50]}  Kg7 {[%clk 0:00:36]} 38. Rxd8 {[%clk 0:01:50]}  h3 {[%clk 0:00:37]} 39. Rd7+ {[%clk 0:01:42]}  Kg6 {[%clk 0:00:36]} 40. Rd8 {[%clk 0:01:36]}  Kg7 {[%clk 0:00:33]} 41. Rc8 {[%clk 0:01:29]}  h2 {[%clk 0:00:22]} 42. Rc1 {[%clk 0:01:27]}  Rd3+ {[%clk 0:00:17]} 43. Kxe5 {[%clk 0:01:26]}  Kf8 {[%clk 0:00:17]} 44. Rh1 {[%clk 0:01:21]}  Rh3 {[%clk 0:00:14]} 45. Ke6 {[%clk 0:00:59]}  Ke8 {[%clk 0:00:14]} 46. Ng5 {[%clk 0:00:42]}  Rh6+ {[%clk 0:00:12]} 47. Ke5 {[%clk 0:00:42]}  Kd7 {[%clk 0:00:09]} 48. Kf5 {[%clk 0:00:42]}  Rxd6 {[%clk 0:00:09]} 49. Rxh2 {[%clk 0:00:41]}  Kc6 {[%clk 0:00:10]} 50. Rh3 {[%clk 0:00:38]}  Rd5+ {[%clk 0:00:08]} 51. Kf4 {[%clk 0:00:37]}  Rd4+ {[%clk 0:00:09]} 52. Kf5 {[%clk 0:00:31]}  Rd5+ {[%clk 0:00:09]} 53. Kf6 {[%clk 0:00:30]}  Rd6+ {[%clk 0:00:09]} 54. Kg7 {[%clk 0:00:25]}  Rd5 {[%clk 0:00:09]} 55. Ne6 {[%clk 0:00:22]}  Rd7+ {[%clk 0:00:09]} 56. Kf6 {[%clk 0:00:22]}  Rb7 {[%clk 0:00:08]} 57. Rxb3 {[%clk 0:00:18]}  Ra7 {[%clk 0:00:06]} 58. Ke5 {[%clk 0:00:17]}  Ra5+ {[%clk 0:00:05]} 59. Ke4 {[%clk 0:00:17]}  Kd6 {[%clk 0:00:06]} 60. Nd4 {[%clk 0:00:17]}  Ra4 {[%clk 0:00:06]} 61. Rb5 {[%clk 0:00:16]}  Kd7 {[%clk 0:00:04]} 62. b4 {[%clk 0:00:17]}  Kc7 {[%clk 0:00:04]} 63. Kd5 {[%clk 0:00:17]}  Ra6 {[%clk 0:00:04]} 64. Ne6+ {[%clk 0:00:17]}  Kc8 {[%clk 0:00:04]} 65. Rc5+ {[%clk 0:00:15]}  Kb7 {[%clk 0:00:04]} 66. Rb5+ {[%clk 0:00:13]}  Kc8 {[%clk 0:00:04]} 67. Nc5 {[%clk 0:00:13]}  Rh6 {[%clk 0:00:04]} 68. Ra5 {[%clk 0:00:12]}  Kc7 {[%clk 0:00:04]} 69. Ra7+ {[%clk 0:00:12]}  Kc8 {[%clk 0:00:04]} 70. Rg7 {[%clk 0:00:11]}  Rh5+ {[%clk 0:00:04]} 71. Kc4 {[%clk 0:00:11]}  Rh6 {[%clk 0:00:05]} 72. b5 {[%clk 0:00:11]}  Kb8 {[%clk 0:00:05]} 73. Kb4 {[%clk 0:00:10]}  Kc8 {[%clk 0:00:05]} 74. Ka5 {[%clk 0:00:10]}  Rh5 {[%clk 0:00:05]} 75. Rg8+ {[%clk 0:00:07]}  Kc7 {[%clk 0:00:05]} 76. Rg5 {[%clk 0:00:08]}  Rxg5 {[%clk 0:00:05]} 77. Ne6+ {[%clk 0:00:08]}  Kb7 {[%clk 0:00:05]} 78. Nxg5 {[%clk 0:00:09]}  Kb8 {[%clk 0:00:06]} 79. Nf3 {[%clk 0:00:10]}  Kb7 {[%clk 0:00:06]} 80. Ne1 {[%clk 0:00:11]}  Kb8 {[%clk 0:00:06]} 81. Nd3 {[%clk 0:00:12]}  Ka8 {[%clk 0:00:07]} 82. Nc5 {[%clk 0:00:13]}  Kb8 {[%clk 0:00:08]} 83. b6 {[%clk 0:00:13]}  Kc8 {[%clk 0:00:08]} 84. Kb5 {[%clk 0:00:14]}  Kb8 {[%clk 0:00:09]} 85. Kc6 {[%clk 0:00:14]}  Kc8 {[%clk 0:00:09]} 86. b7+ {[%clk 0:00:11]}  Kb8 {[%clk 0:00:10]} 87. Nd7+ {[%clk 0:00:11]}  Ka7 {[%clk 0:00:10]} 88. b8=Q+ {[%clk 0:00:12]}  Ka6 {[%clk 0:00:11]} 89. Qb6# {[%clk 0:00:12]} 1-0


[Site "https://www.chess.com"]

[Event "Titled Tuesday Blitz July 11 Early 2023"]
[White "cedchass2006"]
[Black "Ramu, K."]
[BlackFideId "5006171"]
[WhiteElo "2394"]
[BlackElo "2185"]
[Result "1-0"]
[Round "5"]
[TimeControl "180+2"]
[Date "2023.07.11"]
[WhiteClock "0:00:04"]
[BlackClock "0:00:00"]
[Board "171"]

1. e4 {[%clk 0:02:59]}  c5 {[%clk 0:02:48]} 2. Nf3 {[%clk 0:02:58]}  Nc6 {[%clk 0:02:45]} 3. Bb5 {[%clk 0:02:57]}  g6 {[%clk 0:02:37]} 4. Bxc6 {[%clk 0:02:57]}  bxc6 {[%clk 0:02:23]} 5. O-O {[%clk 0:02:51]}  Bg7 {[%clk 0:02:21]} 6. Re1 {[%clk 0:02:47]}  d6 {[%clk 0:02:11]} 7. h3 {[%clk 0:02:34]}  e5 {[%clk 0:01:52]} 8. c3 {[%clk 0:02:34]}  Ne7 {[%clk 0:01:51]} 9. d4 {[%clk 0:02:33]}  cxd4 {[%clk 0:01:47]} 10. cxd4 {[%clk 0:02:33]}  O-O {[%clk 0:01:47]} 11. Nc3 {[%clk 0:02:32]}  h6 {[%clk 0:01:38]} 12. Be3 {[%clk 0:02:22]}  Be6 {[%clk 0:01:34]} 13. Qd2 {[%clk 0:01:50]}  Kh7 {[%clk 0:01:32]} 14. Rad1 {[%clk 0:01:46]}  Qa5 {[%clk 0:01:28]} 15. a3 {[%clk 0:01:41]}  Rab8 {[%clk 0:01:11]} 16. dxe5 {[%clk 0:01:26]}  dxe5 {[%clk 0:01:06]} 17. b4 {[%clk 0:01:17]}  Qa6 {[%clk 0:00:29]} 18. Bc5 {[%clk 0:01:12]}  Rfe8 {[%clk 0:00:26]} 19. Qe2 {[%clk 0:00:56]}  Qxa3 {[%clk 0:00:20]} 20. Qe3 {[%clk 0:00:49]}  Nc8 {[%clk 0:00:11]} 21. Ra1 {[%clk 0:00:44]}  Qb3 {[%clk 0:00:11]} 22. Nd2 {[%clk 0:00:33]}  Qc2 {[%clk 0:00:08]} 23. Rec1 {[%clk 0:00:22]}  Qxc1+ {[%clk 0:00:05]} 24. Rxc1 {[%clk 0:00:21]}  h5 {[%clk 0:00:05]} 25. Bxa7 {[%clk 0:00:18]}  Bh6 {[%clk 0:00:03]} 26. Qe2 {[%clk 0:00:13]}  Nxa7 {[%clk 0:00:02]} 27. Nc4 {[%clk 0:00:10]}  Bxc4 {[%clk 0:00:02]} 28. Qxc4 {[%clk 0:00:09]}  Bxc1 {[%clk 0:00:02]} 29. Na4 {[%clk 0:00:07]}  Bh6 {[%clk 0:00:02]} 30. Qxf7+ {[%clk 0:00:07]}  Bg7 {[%clk 0:00:02]} 31. Qxa7 {[%clk 0:00:07]}  Rbd8 {[%clk 0:00:01]} 32. Nc5 {[%clk 0:00:05]}  Ra8 {[%clk 0:00:01]} 33. Qd7 {[%clk 0:00:04]}  Red8 {[%clk 0:00:01]} 34. Qe7 {[%clk 0:00:04]}  Rd1+ {[%clk 0:00:00]} 35. Kh2 {[%clk 0:00:04]} 1-0


[Site "https://www.chess.com"]

[Event "Titled Tuesday Blitz July 11 Early 2023"]
[White "Gaal, Zsoka"]
[Black "Lisjak, Zlatko"]
[WhiteFideId "777765"]
[BlackFideId "14502186"]
[WhiteElo "2391"]
[BlackElo "2159"]
[Result "1-0"]
[Round "5"]
[TimeControl "180+2"]
[Date "2023.07.11"]
[WhiteClock "0:00:13"]
[BlackClock "0:00:00"]
[Board "172"]

1. g3 {[%clk 0:02:58]}  e5 {[%clk 0:02:57]} 2. Nf3 {[%clk 0:02:58]}  Nc6 {[%clk 0:02:55]} 3. Bg2 {[%clk 0:02:58]}  e4 {[%clk 0:02:51]} 4. Ng1 {[%clk 0:02:41]}  f5 {[%clk 0:02:50]} 5. d3 {[%clk 0:02:41]}  d5 {[%clk 0:02:48]} 6. c4 {[%clk 0:02:41]}  Bb4+ {[%clk 0:02:31]} 7. Bd2 {[%clk 0:02:38]}  Nf6 {[%clk 0:02:01]} 8. Bxb4 {[%clk 0:02:34]}  Nxb4 {[%clk 0:02:00]} 9. a3 {[%clk 0:02:35]}  Na6 {[%clk 0:01:50]} 10. cxd5 {[%clk 0:02:35]}  e3 {[%clk 0:01:40]} 11. fxe3 {[%clk 0:02:32]}  Nxd5 {[%clk 0:01:37]} 12. Qd2 {[%clk 0:02:32]}  Nc5 {[%clk 0:01:30]} 13. Nc3 {[%clk 0:01:53]}  Nb3 {[%clk 0:01:23]} 14. Qd1 {[%clk 0:01:38]}  Nxa1 {[%clk 0:01:10]} 15. Bxd5 {[%clk 0:01:35]}  c6 {[%clk 0:01:09]} 16. Ba2 {[%clk 0:01:31]}  Qe7 {[%clk 0:01:09]} 17. Kf2 {[%clk 0:01:21]}  Be6 {[%clk 0:01:02]} 18. Qxa1 {[%clk 0:01:20]}  O-O-O {[%clk 0:01:02]} 19. Bxe6+ {[%clk 0:01:20]}  Qxe6 {[%clk 0:01:01]} 20. Nf3 {[%clk 0:01:10]}  Rde8 {[%clk 0:00:58]} 21. Qc1 {[%clk 0:01:10]}  Qb3 {[%clk 0:00:46]} 22. Nd4 {[%clk 0:01:08]}  Qb6 {[%clk 0:00:42]} 23. b4 {[%clk 0:00:57]}  Kb8 {[%clk 0:00:41]} 24. Rf1 {[%clk 0:00:56]}  g6 {[%clk 0:00:39]} 25. Kg2 {[%clk 0:00:56]}  Re7 {[%clk 0:00:38]} 26. b5 {[%clk 0:00:54]}  c5 {[%clk 0:00:36]} 27. Nd5 {[%clk 0:00:52]}  Qd6 {[%clk 0:00:30]} 28. Nxe7 {[%clk 0:00:52]}  cxd4 {[%clk 0:00:28]} 29. exd4 {[%clk 0:00:52]}  Qxe7 {[%clk 0:00:23]} 30. Qf4+ {[%clk 0:00:52]}  Ka8 {[%clk 0:00:22]} 31. Qe5 {[%clk 0:00:52]}  Qd8 {[%clk 0:00:19]} 32. e4 {[%clk 0:00:29]}  Re8 {[%clk 0:00:17]} 33. Qd5 {[%clk 0:00:22]}  Qc7 {[%clk 0:00:16]} 34. exf5 {[%clk 0:00:17]}  gxf5 {[%clk 0:00:07]} 35. Rxf5 {[%clk 0:00:17]}  Qc2+ {[%clk 0:00:03]} 36. Kh3 {[%clk 0:00:16]}  Qxd3 {[%clk 0:00:00]} 37. Rf7 {[%clk 0:00:13]} 1-0


[Site "https://www.chess.com"]

[Event "Titled Tuesday Blitz July 11 Early 2023"]
[White "a-z30"]
[Black "Grigoryan, Meri"]
[BlackFideId "13300571"]
[WhiteElo "2380"]
[BlackElo "2141"]
[Result "1-0"]
[Round "5"]
[TimeControl "180+2"]
[Date "2023.07.11"]
[WhiteClock "0:01:27"]
[BlackClock "0:00:30"]
[Board "176"]

1. d3 {[%clk 0:03:00]}  d5 {[%clk 0:02:59]} 2. Nf3 {[%clk 0:03:01]}  Nf6 {[%clk 0:02:58]} 3. g3 {[%clk 0:03:02]}  c5 {[%clk 0:02:58]} 4. Bg2 {[%clk 0:03:03]}  Nc6 {[%clk 0:02:59]} 5. O-O {[%clk 0:03:04]}  g6 {[%clk 0:02:58]} 6. c4 {[%clk 0:03:05]}  Bg7 {[%clk 0:02:54]} 7. Nc3 {[%clk 0:03:05]}  d4 {[%clk 0:02:53]} 8. Na4 {[%clk 0:03:05]}  e5 {[%clk 0:02:51]} 9. Nxc5 {[%clk 0:03:04]}  O-O {[%clk 0:02:50]} 10. Bg5 {[%clk 0:03:02]}  h6 {[%clk 0:02:45]} 11. Bxf6 {[%clk 0:03:01]}  Bxf6 {[%clk 0:02:46]} 12. a3 {[%clk 0:02:50]}  Bg7 {[%clk 0:02:45]} 13. b4 {[%clk 0:02:50]}  a6 {[%clk 0:02:45]} 14. Nd2 {[%clk 0:02:37]}  Qe7 {[%clk 0:02:42]} 15. Na4 {[%clk 0:02:27]}  f5 {[%clk 0:02:36]} 16. Nb6 {[%clk 0:02:25]}  Rb8 {[%clk 0:02:37]} 17. Nxc8 {[%clk 0:02:00]}  Rbxc8 {[%clk 0:02:36]} 18. c5 {[%clk 0:02:00]}  Kh7 {[%clk 0:02:33]} 19. Nc4 {[%clk 0:01:58]}  Rcd8 {[%clk 0:02:27]} 20. Nd6 {[%clk 0:01:57]}  Rxd6 {[%clk 0:02:25]} 21. cxd6 {[%clk 0:01:57]}  Qxd6 {[%clk 0:02:25]} 22. Bxc6 {[%clk 0:01:45]}  Qxc6 {[%clk 0:02:24]} 23. Rc1 {[%clk 0:01:44]}  Qf6 {[%clk 0:02:12]} 24. Rc7 {[%clk 0:01:41]}  Rf7 {[%clk 0:02:08]} 25. Qc2 {[%clk 0:01:38]}  Rxc7 {[%clk 0:01:55]} 26. Qxc7 {[%clk 0:01:36]}  b5 {[%clk 0:01:55]} 27. Rc1 {[%clk 0:01:35]}  e4 {[%clk 0:01:53]} 28. Rc6 {[%clk 0:01:32]}  Qg5 {[%clk 0:01:45]} 29. Rxa6 {[%clk 0:01:31]}  e3 {[%clk 0:00:30]} 30. f4 {[%clk 0:01:27]} 1-0


[Site "https://www.chess.com"]